bitfinex/quotes_ETHUSD_20220218
["timestamp","ask_amount","ask_price","bid_price","bid_amount"]
[1645192216939,1.63728607,2900.6,2900.4,4.42033447]
[1645192217237,1.63728607,2900.6,2900.1,1.59391288]
[1645192217438,0.87429842,2900.5,2900.1,1.59391288]
[1645192218079,0.87364146,2900.2,2900.1,1.59391288]
[1645192218485,1.37064146,2900.2,2900.1,1.59391288]
[1645192218690,1.37064146,2900.2,2899.6,1.59391288]
[1645192218984,1.72571,2900.1,2899.6,1.59391288]
[1645192219184,1.3599308,2900.0,2899.6,1.59391288]
[1645192219384,2.23422922,2900.0,2899.6,1.59391288]
[1645192219583,3.5,2899.9,2899.6,1.59391288]
[1645192219784,0.497,2899.8,2899.6,1.59391288]
[1645192219985,1.75715215,2899.7,2899.6,1.59391288]
[1645192220184,2.25415215,2899.7,2899.6,1.59391288]
[1645192220985,2.25415215,2899.7,2899.6,1.5951064]
[1645192222226,2.25415215,2899.7,2899.6,1.59391288]
[1645192224433,1.39121215,2899.7,2899.6,1.59391288]
[1645192225033,0.92163819,2899.7,2899.6,1.59391288]
[1645192226077,0.94167007,2899.7,2899.6,1.62806274]
[1645192227486,0.51703188,2899.7,2899.6,1.62806274]
[1645192228484,1.6412132,2899.7,2899.6,1.62806274]
[1645192229733,1.64220535,2899.7,2899.6,1.62806274]
[1645192230732,1.64220535,2899.7,2899.6,1.59391288]
[1645192230933,1.67470462,2899.7,2899.6,1.59391288]
[1645192231135,0.5505233,2899.7,2899.6,1.59391288]
[1645192233078,1.70466672,2899.7,2899.6,1.59391288]
[1645192240984,1.68897748,2899.7,2899.6,1.64158857]
[1645192244530,1.68798533,2899.7,2899.6,1.64158857]
[1645192244939,1.68798533,2899.7,2899.1,1.59391288]
[1645192244940,6.5,2899.6,2899.1,1.59391288]
[1645192245136,2.5892759,2899.4,2899.1,1.59391288]
[1645192245333,0.497,2899.3,2899.1,1.59391288]
[1645192245533,1.497,2899.3,2899.1,1.59391288]
[1645192246135,0.88015401,2899.2,2899.1,1.59391288]
[1645192246435,1.37715401,2899.2,2899.1,1.59391288]
[1645192247038,1.37715401,2899.2,2898.8,1.5366]
[1645192247243,0.86304,2899.1,2898.2,4.46381288]
[1645192247439,0.497,2899.0,2898.2,1.59391288]
[1645192247638,3.997,2899.0,2898.2,1.59391288]
[1645192247835,0.797,2899.0,2898.2,1.59391288]
[1645192248085,1.0,2898.9,2898.2,1.59391288]
[1645192248282,4.6631423,2898.9,2898.2,1.59391288]
[1645192248482,0.91694671,2898.3,2898.2,1.59391288]
[1645192248784,0.86314,2898.6,2898.2,1.59391288]
[1645192249082,0.86314,2898.6,2898.1,7.3]
[1645192249083,1.497,2898.8,2898.5,0.00250727]
[1645192249486,0.497,2898.8,2898.5,1.59642015]
[1645192249687,1.15137593,2898.7,2898.5,1.59642015]
[1645192250087,2.15137593,2898.7,2898.5,1.59391288]
[1645192250788,2.15137593,2898.7,2898.3,0.00138733]
[1645192250987,3.5,2898.6,2898.4,0.04405644]
[1645192251386,1.0,2898.5,2898.4,0.04405644]
[1645192251846,2.36018,2898.6,2898.4,0.04405644]
[1645192252042,3.5,2898.5,2898.4,0.04405644]
[1645192252447,1.0,2898.5,2898.4,0.04544372]
[1645192253447,1.0,2898.5,2898.4,0.04405644]
[1645192253643,4.5,2898.5,2898.4,0.04405644]
[1645192254044,1.0,2898.5,2898.4,0.04405644]
[1645192255879,1.100515,2898.5,2898.3,0.03995029]
[1645192256079,1.0,2898.4,2898.3,0.04236781]
[1645192256281,1.9637536,2898.5,2898.3,0.04236781]
[1645192257287,1.9637536,2898.5,2898.3,0.04245934]
[1645192257288,1.100515,2898.5,2898.3,0.04245934]
[1645192257793,1.100515,2898.5,2898.4,1.59391288]
[1645192257794,0.100515,2898.5,2898.4,1.59391288]
[1645192260852,0.03473061,2898.5,2898.4,1.59391288]
[1645192265882,0.08232972,2898.5,2898.4,1.59391288]
[1645192268653,0.08232972,2898.5,2898.4,1.59238432]
[1645192269662,0.08232972,2898.5,2898.4,1.89238432]
[1645192269859,0.08232972,2898.5,2898.4,3.36167246]
[1645192270058,0.08232972,2898.5,2898.4,3.36165503]
[1645192270260,0.08232972,2898.5,2898.4,1.59238432]
[1645192270883,0.03473061,2898.5,2898.4,1.59238432]
[1645192271085,0.1268384,2898.5,2898.4,1.62998312]
[1645192275846,0.13504934,2898.5,2898.4,1.62998312]
[1645192277441,3.63504934,2898.5,2898.4,1.62998312]
[1645192277638,3.63504934,2898.5,2898.4,0.0375988]
[1645192277639,0.13504934,2898.5,2898.4,0.0375988]
[1645192277841,1.63204934,2898.5,2898.4,0.0375988]
[1645192278110,5.17825144,2898.5,2898.4,0.0375988]
[1645192278306,1.80444934,2898.5,2898.4,0.0375988]
[1645192278516,6.00585144,2898.5,2898.4,0.0375988]
[1645192278707,5.30585144,2898.5,2898.4,0.0375988]
[1645192278908,6.30585144,2898.5,2898.4,0.0375988]
[1645192279106,5.43204934,2898.5,2898.4,0.0375988]
[1645192279306,6.30552361,2898.5,2898.4,0.0375988]
[1645192279510,8.89565361,2898.5,2898.4,0.0375988]
[1645192279709,4.22217934,2898.5,2898.4,0.0375988]
[1645192281014,1.63204934,2898.5,2898.3,0.03973339]
[1645192281214,1.0,2898.4,2898.3,0.03973339]
[1645192281414,2.49516934,2898.5,2898.3,0.03973339]
[1645192281613,2.49516934,2898.5,2898.3,0.04186798]
[1645192281832,2.49516934,2898.5,2898.3,0.03973339]
[1645192282537,2.49516934,2898.5,2898.3,0.0375988]
[1645192282734,2.49427951,2898.5,2898.3,0.0375988]
[1645192282934,2.49427951,2898.5,2898.3,0.03973341]
[1645192283538,3.36771653,2898.5,2898.3,0.03973341]
[1645192283934,2.49427951,2898.5,2898.3,0.03973341]
[1645192284137,2.49427951,2898.5,2898.3,0.04003486]
[1645192284736,6.86771653,2898.5,2898.3,0.04003486]
[1645192284938,3.5,2898.4,2898.3,0.0375988]
[1645192285237,0.497,2898.4,2898.3,0.04003486]
[1645192285438,1.497,2898.4,2898.3,0.04003486]
[1645192285688,4.87043702,2898.4,2898.3,0.04003486]
[1645192285990,2.37043702,2898.4,2898.3,0.04003486]
[1645192286193,1.497,2898.4,2898.3,0.04003486]
[1645192286387,0.497,2898.4,2898.3,0.04003486]
[1645192286587,1.37043702,2898.4,2898.3,0.04003486]
[1645192286786,1.37043702,2898.4,2898.3,0.0375988]
[1645192286986,4.87043702,2898.4,2898.3,0.0375988]
[1645192287188,1.37043702,2898.4,2898.3,0.0375988]
[1645192287389,2.37043702,2898.4,2898.3,0.0375988]
[1645192287788,1.37043702,2898.4,2898.3,0.0375988]
[1645192287992,2.37043702,2898.4,2898.3,0.0375988]
[1645192288188,2.37133194,2898.4,2898.3,0.0375988]
[1645192288389,5.87133194,2898.4,2898.3,0.0375988]
[1645192288589,4.997,2898.4,2898.3,0.0375988]
[1645192288988,4.997,2898.4,2898.2,0.00210453]
[1645192289190,9.5,2898.3,2897.7,1.5329]
[1645192289464,9.5,2898.3,2897.4,7.52738432]
[1645192289465,0.87472027,2898.0,2897.4,4.75128432]
[1645192289662,3.997,2897.9,2897.4,1.59238432]
[1645192289865,4.87172027,2897.9,2897.4,1.59238432]
[1645192290066,5.43932813,2897.8,2897.1,1.59238432]
[1645192290274,0.497,2897.7,2897.2,0.00397454]
[1645192290465,5.23829027,2897.6,2897.2,0.00397454]
[1645192290665,0.497,2897.5,2897.2,0.00397454]
[1645192290867,3.5,2897.4,2897.2,0.00397454]
[1645192291069,0.497,2897.3,2897.2,0.00397454]
[1645192291269,1.07279971,2897.2,2897.1,1.59238432]
[1645192291475,1.56979971,2897.2,2897.1,1.59238432]
[1645192292467,5.06979971,2897.2,2897.1,1.59238432]
[1645192293081,1.56979971,2897.2,2897.0,0.00397454]
[1645192293581,0.86362,2897.1,2896.7,0.00397454]
[1645192293785,0.497,2897.0,2896.7,0.00397454]
[1645192294089,0.497,2897.0,2896.9,1.59238432]
[1645192294285,2.22433,2897.0,2896.7,1.59238432]
[1645192294685,3.22433,2897.0,2896.7,1.59238432]
[1645192296088,3.22433,2897.0,2896.7,1.59460796]
[1645192297536,3.22433,2897.0,2896.7,1.5968316]
[1645192297735,3.22433,2897.0,2896.7,1.59460796]
[1645192297934,3.22433,2897.0,2896.7,0.00222364]
[1645192298339,0.86362,2897.1,2896.9,1.59238432]
[1645192298545,0.08715136,2897.2,2896.9,1.89238432]
[1645192298736,0.08715136,2897.2,2897.1,1.59238432]
[1645192300341,0.08715136,2897.2,2897.0,0.00397454]
[1645192300791,0.08715136,2897.2,2896.7,0.00213125]
[1645192300792,2.0067604,2897.0,2896.7,0.00213125]
[1645192300986,2.02404881,2897.0,2896.9,0.03413182]
[1645192301188,2.02404881,2897.0,2896.9,0.0362648]
[1645192302488,2.52104881,2897.0,2896.9,0.0362648]
[1645192303690,7.02104881,2897.0,2896.9,0.03413182]
[1645192305555,3.52104881,2897.0,2896.9,0.03413182]
[1645192305753,3.52104881,2897.0,2896.9,1.62651614]
[1645192305754,1.50413673,2897.0,2896.9,1.62651614]
[1645192305957,0.14348673,2897.0,2896.9,1.59238432]
[1645192309184,1.06056869,2897.6,2897.1,0.96747603]
[1645192309388,3.997,2898.5,2897.5,1.59238432]
[1645192309389,0.1724,2898.3,2897.5,1.59238432]
[1645192309591,0.1724,2898.3,2897.5,0.3]
[1645192309991,0.1724,2898.4,2897.3,0.00397454]
[1645192310188,1.04712027,2898.4,2897.3,0.00397454]
[1645192310389,1.04712027,2898.4,2897.9,1.59238432]
[1645192310586,1.1687644,2898.0,2897.9,1.59238432]
[1645192311487,1.1687644,2898.0,2897.8,0.00217263]
[1645192311687,2.0320844,2898.0,2897.9,1.59238432]
[1645192313358,2.0320844,2898.0,2897.8,0.00233688]
[1645192313860,0.86332,2898.0,2897.8,0.00233688]
[1645192314163,1.04712027,2898.5,2897.9,1.59238432]
[1645192314363,0.87472027,2898.7,2898.1,1.59238432]
[1645192314962,1.00097538,2898.3,2897.8,0.00243339]
[1645192315162,1.00097538,2898.3,2898.2,1.59238432]
[1645192315984,1.00097538,2898.3,2898.1,0.00243336]
[1645192316784,1.00097538,2898.3,2898.1,0.00486666]
[1645192316983,1.00097538,2898.3,2898.1,0.0024333]
[1645192317390,2.72757538,2898.3,2898.1,0.0024333]
[1645192317586,3.60229565,2898.3,2898.2,1.59238432]
[1645192317783,2.72757538,2898.3,2898.2,1.59238432]
[1645192318386,1.00097538,2898.3,2898.2,1.59238432]
[1645192320443,0.87239736,2898.5,2898.2,1.59238432]
[1645192320646,1.73553736,2898.6,2898.4,1.59238432]
[1645192321043,0.86314,2898.6,2898.4,1.59238432]
[1645192321244,1.73553736,2898.6,2898.4,1.59238432]
[1645192321648,1.18455739,2898.5,2898.4,1.59238432]
[1645192322347,0.58898455,2898.3,2898.1,0.00434754]
[1645192323484,0.58898455,2898.3,2898.2,1.59238432]
[1645192326094,0.64308603,2898.3,2898.2,1.59238432]
[1645192326292,0.64308603,2898.3,2898.1,1.5964065]
[1645192326493,0.64308603,2898.3,2898.1,1.59819368]
[1645192327233,0.64308603,2898.3,2898.1,1.59618261]
[1645192327534,0.64308603,2898.3,2898.1,1.59810402]
[1645192327838,0.64308603,2898.3,2898.1,1.59609291]
[1645192328435,0.64308603,2898.3,2898.1,1.59430573]
[1645192328832,0.64308603,2898.3,2898.1,1.59617819]
[1645192329031,0.64308603,2898.3,2898.1,1.59425678]
[1645192329435,0.64308603,2898.3,2898.1,0.00187246]
[1645192329639,0.64308603,2898.3,2898.2,1.59238432]
[1645192330886,0.63595021,2898.3,2898.2,1.6267027]
[1645192332093,2.44968228,2898.3,2898.2,0.03431838]
[1645192332295,2.13295021,2898.3,2898.2,0.03431838]
[1645192332890,3.87949199,2898.3,2898.2,0.03431838]
[1645192333488,3.87949199,2898.3,2898.2,0.03318066]
[1645192334643,3.87949199,2898.3,2897.5,1.59238432]
[1645192334644,0.86346,2898.0,2897.5,1.59238432]
[1645192334845,0.87311748,2897.7,2897.5,1.59238432]
[1645192335045,0.497,2897.6,2897.5,1.59238432]
[1645192335845,0.497,2897.6,2897.3,0.00397454]
[1645192336043,1.39829727,2897.6,2897.5,1.59238432]
[1645192339088,1.39829727,2897.6,2897.4,0.00250413]
[1645192339493,1.39829727,2897.6,2897.2,0.00397454]
[1645192339693,1.39829727,2897.6,2897.5,1.59238432]
[1645192339894,2.39829727,2897.6,2897.5,1.59238432]
[1645192340093,1.39829727,2897.6,2897.5,1.59238432]
[1645192340292,2.39829727,2897.6,2897.5,1.59238432]
[1645192340493,1.39829727,2897.6,2897.5,1.59238432]
[1645192340692,2.41593597,2897.6,2897.5,1.63548876]
[1645192341292,1.41593597,2897.6,2897.5,1.63548876]
[1645192341491,2.41593597,2897.6,2897.5,1.63548876]
[1645192342336,1.41593597,2897.6,2897.5,1.63548876]
[1645192342534,1.41593597,2897.6,2897.5,0.04310444]
[1645192342535,2.41593597,2897.6,2897.5,0.04310444]
[1645192342935,2.41593597,2897.6,2897.5,1.63548876]
[1645192343135,6.5,2897.5,2897.2,0.00397454]
[1645192343347,2.80667621,2897.4,2897.2,0.0025115]
[1645192343543,3.90104621,2897.3,2897.2,0.0025115]
[1645192343736,4.39804621,2897.3,2897.2,0.0025115]
[1645192343937,5.39804621,2897.3,2897.2,0.0025115]
[1645192344545,4.08837,2897.3,2897.2,0.0025115]
[1645192344743,5.39804621,2897.3,2897.2,0.0025115]
[1645192346202,4.96049565,2897.3,2897.2,0.0025115]
[1645192346395,4.08837,2897.3,2897.2,0.0025115]
[1645192346890,4.26087,2897.3,2897.2,0.0025115]
[1645192347895,4.13256623,2897.3,2897.2,0.0025115]
[1645192348098,0.497,2897.3,2897.2,0.0025115]
[1645192349346,0.86375,2897.5,2897.2,0.0025115]
[1645192349550,0.9248237,2897.6,2897.2,0.0025115]
[1645192349752,0.87169623,2897.5,2897.2,0.0025115]
[1645192349952,2.29351993,2897.6,2897.2,0.0025115]
[1645192350556,2.29351993,2897.6,2897.3,0.00216677]
[1645192350854,1.72709,2897.5,2897.3,0.00216677]
[1645192351258,2.72709,2897.5,2897.3,0.00216677]
[1645192351852,2.72709,2897.5,2897.3,0.00433354]
[1645192352053,2.72709,2897.5,2897.3,0.00216677]
[1645192352054,1.0,2897.5,2897.3,0.00216677]
[1645192352256,2.26182727,2897.6,2897.3,0.00216677]
[1645192352454,2.39829727,2897.6,2897.3,0.00216677]
[1645192352652,1.39829727,2897.6,2897.2,0.0025115]
[1645192352953,1.39829727,2897.6,2897.3,0.00216677]
[1645192353602,0.86347,2897.5,2897.3,0.00216677]
[1645192354199,0.86347,2897.5,2897.3,0.00450073]
[1645192354401,0.86347,2897.5,2897.3,0.00233396]
[1645192354602,1.86347,2897.5,2897.3,0.00233396]
[1645192355299,1.86347,2897.5,2897.2,0.0025115]
[1645192355502,1.86347,2897.5,2897.3,0.00231191]
[1645192356104,1.89214948,2897.5,2897.3,0.00231191]
[1645192356313,0.89214948,2897.5,2897.3,0.00231191]
[1645192356506,0.89214948,2897.5,2897.3,0.00462382]
[1645192356861,0.02867948,2897.5,2897.3,0.00231191]
[1645192357764,0.02867948,2897.5,2897.3,0.00212244]
[1645192358763,0.02867948,2897.5,2897.2,0.0025115]
[1645192358970,0.89211948,2897.5,2897.3,0.00212202]
[1645192359468,0.02867948,2897.5,2897.3,0.00212202]
[1645192359967,0.02867948,2897.5,2897.1,0.00395283]
[1645192360365,0.02867948,2897.5,2897.3,0.00212202]
[1645192360799,0.01832304,2897.5,2897.4,0.03593966]
[1645192361001,0.08037351,2897.6,2897.4,0.03593966]
[1645192361402,0.87169623,2898.4,2897.5,0.86321]
[1645192361609,3.5,2898.6,2897.5,0.86321]
[1645192361610,0.87281853,2898.6,2897.9,5.0]
[1645192361811,0.0092402,2899.0,2898.2,0.01205994]
[1645192362006,0.0092402,2899.0,2898.6,5.0]
[1645192362211,0.0092402,2899.0,2898.7,3.5]
[1645192362406,1.15454328,2899.6,2898.7,3.5]
[1645192362407,0.01681003,2899.7,2898.8,0.1724]
[1645192362607,0.01681003,2899.7,2898.9,0.8628366]
[1645192362806,0.00925193,2899.0,2898.9,1.4742366]
[1645192363005,0.00925193,2899.0,2898.9,1.4242366]
[1645192363211,0.00487072,2900.3,2899.0,12.0]
[1645192363409,0.00487072,2900.3,2899.4,0.2344]
[1645192363410,0.99198643,2900.3,2899.4,0.2344]
[1645192363611,0.99198643,2900.3,2899.5,1.1626956]
[1645192364009,0.99198643,2900.3,2899.5,0.3]
[1645192364214,1.86287,2900.0,2899.5,0.3]
[1645192364658,1.01582089,2899.7,2899.5,0.3]
[1645192364859,1.01582089,2899.7,2899.2,0.1724]
[1645192364860,0.00231315,2899.5,2899.2,0.1724]
[1645192365859,0.07908544,2899.5,2899.2,0.1724]
[1645192366159,0.07677229,2899.5,2899.2,0.1724]
[1645192367159,0.07677229,2899.5,2899.2,4.5352361]
[1645192367360,0.07677229,2899.5,2899.3,0.3]
[1645192367960,0.02795685,2899.5,2899.3,0.3]
[1645192368192,0.02795685,2899.5,2899.4,1.12091392]
[1645192368991,0.02795685,2899.5,2899.4,4.62091392]
[1645192369192,0.03027175,2899.5,2899.4,4.62091392]
[1645192369402,0.03027175,2899.5,2899.4,1.12091392]
[1645192370196,0.02795685,2899.5,2899.4,1.12091392]
[1645192370797,0.00239636,2899.6,2899.4,1.12091392]
[1645192371000,0.00239636,2899.6,2899.4,2.90469756]
[1645192371400,1.0,2900.0,2899.6,0.86253]
[1645192371601,1.009584,2900.0,2899.6,0.86253]
[1645192372440,1.009584,2900.0,2899.6,1.7250548]
[1645192372842,1.009584,2900.0,2899.7,0.86254]
[1645192373043,1.0,2900.0,2899.8,0.3]
[1645192374044,0.00212651,2899.9,2899.8,0.3]
[1645192374345,0.00212651,2899.9,2899.8,1.1626112]
[1645192374948,0.00212651,2899.9,2899.8,1.1126112]
[1645192375349,0.00212651,2899.9,2899.5,2.55736179]
[1645192375605,0.00212651,2899.9,2899.4,1.78368034]
[1645192375606,0.497,2899.8,2899.4,0.05868034]
[1645192375813,0.1724,2899.7,2899.4,0.05868034]
[1645192376008,1.00212647,2900.0,2899.8,0.03264329]
[1645192376403,1.00425294,2900.0,2899.8,0.03264329]
[1645192376600,0.86281,2899.9,2899.8,0.03264329]
[1645192376804,1.00425294,2900.0,2899.8,0.02264037]
[1645192377206,1.00212647,2900.0,2899.8,0.02264037]
[1645192377603,1.00425296,2900.0,2899.8,0.02264037]
[1645192378905,3.5,2899.9,2899.8,0.02264037]
[1645192379343,0.90910148,2899.9,2899.8,0.02264037]
[1645192379546,1.40610148,2899.9,2899.8,0.02264037]
[1645192379947,0.497,2899.9,2899.8,0.02264037]
[1645192380851,1.00427849,2900.0,2899.8,0.02264037]
[1645192381050,0.02198949,2899.9,2899.8,1.16597127]
[1645192381249,0.02198949,2899.9,2899.8,1.76597127]
[1645192381852,0.02198949,2899.9,2899.8,3.49105127]
[1645192382258,1.02315098,2900.0,2899.9,3.0]
[1645192382452,0.00860671,2900.5,2900.0,2.5]
[1645192382655,0.00860679,2900.4,2900.0,4.0112]
[1645192382853,0.00860679,2900.4,2900.1,0.8623038]
[1645192383094,0.00860679,2900.4,2900.2,5.0]
[1645192383291,0.00860679,2900.4,2900.2,0.3]
[1645192383493,0.00860679,2900.4,2900.3,1.0]
[1645192383691,0.00860679,2900.4,2900.2,0.3]
[1645192383892,0.01579744,2900.4,2900.3,1.03055525]
[1645192385096,0.01891127,2900.4,2900.3,1.03055525]
[1645192385896,0.01891127,2900.4,2900.2,1.1624059]
[1645192385897,1.127e-05,2900.4,2900.2,1.1624059]
[1645192386841,0.01279106,2900.5,2900.2,1.1624059]
[1645192387241,0.01279106,2900.5,2900.3,1.09156366]
[1645192387449,0.01474874,2900.5,2900.3,1.09156366]
[1645192387647,0.01279106,2900.5,2900.3,1.09156366]
[1645192388243,0.01083338,2900.5,2900.3,1.09156366]
[1645192388546,0.01318073,2900.5,2900.3,1.09391125]
[1645192389044,0.01318073,2900.5,2900.3,4.59391125]
[1645192389246,0.01318073,2900.5,2900.3,1.09391125]
[1645192389457,0.79096347,2901.6,2900.3,1.09391125]
[1645192389649,0.79096347,2901.6,2900.5,0.86229]
[1645192390054,0.75035054,2901.6,2900.5,0.86229]
[1645192390254,0.6693,2901.5,2900.3,1.09391125]
[1645192390458,0.86237,2901.3,2900.4,3.5]
[1645192390701,0.1723,2901.7,2901.2,0.84559523]
[1645192391101,0.71929999,2902.1,2901.2,0.84559523]
[1645192391301,0.71929999,2902.1,2901.7,0.97579756]
[1645192391505,0.04999999,2902.1,2901.7,0.97579756]
[1645192391703,0.04999999,2902.1,2901.7,0.67274357]
[1645192392708,2.172352,2902.4,2901.7,0.67274357]
[1645192392904,0.00246445,2902.0,2901.7,0.67274357]
[1645192393805,0.00246438,2902.2,2901.7,0.97274357]
[1645192394657,0.99932043,2902.9,2901.7,0.97274357]
[1645192394658,0.86191,2902.8,2901.7,0.97274357]
[1645192394861,0.86191,2902.8,2901.7,3.55836067]
[1645192395058,0.00246447,2902.0,2901.7,3.55836067]
[1645192395460,0.00246447,2902.0,2901.7,0.67274357]
[1645192396270,0.00246447,2902.0,2901.9,0.03198602]
[1645192396464,0.49933689,2902.4,2901.9,0.03198602]
[1645192397063,0.497,2902.4,2901.9,0.03198602]
[1645192397263,0.00196557,2902.1,2901.9,0.03198602]
[1645192397871,0.49896557,2902.1,2901.9,0.03198602]
[1645192398099,1.36107557,2902.1,2901.9,0.03198602]
[1645192398903,0.3,2902.0,2901.9,0.03198602]
[1645192399105,1.23223061,2902.0,2901.9,0.03198602]
[1645192399305,2.23223061,2902.0,2901.9,0.03198602]
[1645192399506,1.35911,2902.1,2901.9,0.03198602]
[1645192399707,0.49899456,2902.1,2901.9,0.03198602]
[1645192400905,0.49899456,2902.1,2902.0,0.03039557]
[1645192401307,0.497,2902.1,2902.0,0.03039557]
[1645192401507,0.1721,2902.7,2902.0,0.03039557]
[1645192401708,0.86191,2902.8,2902.0,0.03039557]
[1645192401943,0.86191,2902.8,2902.0,0.89224557]
[1645192402146,1.86698846,2903.1,2902.5,1.12743863]
[1645192402343,0.86698846,2903.1,2902.5,1.12743863]
[1645192402541,0.81698846,2903.0,2902.5,1.12743863]
[1645192402750,0.86181,2903.1,2902.5,1.12743863]
[1645192402948,0.86181,2903.1,2902.1,1.6293]
[1645192403251,1.72376,2903.1,2902.1,1.6293]
[1645192403447,0.86195,2903.1,2902.1,1.6293]
[1645192403848,0.86198,2902.8,2902.1,1.6293]
[1645192404050,0.86198,2902.8,2902.4,1.14861865]
[1645192404250,2.26985264,2903.2,2902.4,1.14861865]
[1645192404251,0.07009613,2903.2,2902.4,1.14861865]
[1645192404450,0.07009613,2903.2,2902.4,2.01031865]
[1645192404653,0.00253611,2902.7,2902.4,1.14861865]
[1645192405692,0.00253611,2902.7,2902.4,1.44861865]
[1645192405899,0.00253611,2902.7,2902.4,2.31028565]
[1645192406292,0.00253611,2902.7,2902.6,0.03035177]
[1645192407103,0.0049373,2902.7,2902.6,0.03035177]
[1645192407302,0.0049373,2902.7,2902.6,0.02120883]
[1645192407501,0.00240119,2902.7,2902.6,0.02120883]
[1645192408802,0.00240114,2902.8,2902.6,0.02120883]
[1645192409003,0.00240114,2902.8,2902.6,1.01612949]
[1645192409655,0.00480228,2902.8,2902.6,1.01612949]
[1645192410455,0.00240114,2902.8,2902.6,1.01612949]
[1645192410655,0.0046087,2902.8,2902.6,1.01612949]
[1645192410960,0.00952439,2902.7,2902.6,0.99492066]
[1645192411153,0.02919409,2902.7,2902.6,0.99492066]
[1645192414410,0.0043472,2902.8,2902.7,6.0]
[1645192414411,0.00196639,2902.8,2902.7,6.0]
[1645192414612,0.03280988,2903.7,2902.8,6.0]
[1645192414815,0.0440697,2903.8,2903.2,0.3058]
[1645192414816,0.01378588,2903.8,2903.2,0.3058]
[1645192415011,0.86623803,2904.2,2903.7,0.01262567]
[1645192415212,0.86623803,2904.2,2903.8,0.1721]
[1645192415410,0.86623803,2904.8,2903.8,0.1721]
[1645192415612,0.86623803,2904.9,2903.8,0.1721]
[1645192415814,0.86623803,2905.0,2903.8,1.03322]
[1645192416013,0.86623803,2904.8,2903.8,0.86112]
[1645192416214,0.86623803,2904.8,2904.1,0.88308741]
[1645192416688,0.86623803,2904.8,2903.6,1.72223]
[1645192416855,0.86125,2904.7,2903.6,1.72223]
[1645192417056,0.86125,2904.7,2903.8,0.86127]
[1645192417258,0.86125,2904.7,2903.6,3.5]
[1645192417755,0.86125,2904.7,2903.6,4.3775254]
[1645192417956,0.00318171,2904.6,2903.6,4.3775254]
[1645192418155,1.72576171,2904.6,2903.6,4.3775254]
[1645192418354,1.72576171,2904.6,2903.6,4.8496254]
[1645192418557,1.72576171,2904.6,2903.6,1.3496254]
[1645192418762,1.72576171,2904.6,2903.6,1.0496254]
[1645192418958,1.72576171,2904.6,2903.6,0.8775254]
[1645192419358,1.7277389,2904.6,2903.6,0.8775254]
[1645192419757,1.72455719,2904.6,2903.6,0.8775254]
[1645192419958,1.67940356,2904.6,2903.6,0.8775254]
[1645192420357,0.00197734,2904.2,2903.6,1.7387554]
[1645192421004,0.00197734,2904.2,2903.5,0.1721]
[1645192421202,0.00197734,2904.2,2903.7,0.03459152]
[1645192421407,1.77441933,2904.4,2903.8,0.0354357]
[1645192421803,0.00226946,2904.0,2903.8,0.0354357]
[1645192423106,0.86362943,2904.1,2903.8,0.0354357]
[1645192423706,0.86136,2904.1,2903.8,0.0354357]
[1645192424208,0.00220825,2904.0,2903.8,0.0354357]
[1645192425456,0.0023156,2904.1,2903.8,0.0354357]
[1645192426157,1.7226,2904.6,2903.8,0.0354357]
[1645192426358,1.7226,2904.6,2903.9,0.03261472]
[1645192426562,0.00231563,2904.0,2903.9,0.03261472]
[1645192427865,0.86133,2904.2,2903.9,0.03261472]
[1645192428095,0.8614619,2904.1,2903.9,0.01348007]
[1645192428293,0.86133,2904.2,2903.9,0.01348007]
[1645192428895,0.0021937,2904.1,2903.9,0.01348007]
[1645192429497,1.04542605,2904.1,2903.9,0.01348007]
[1645192430099,0.99542605,2904.1,2903.9,0.01348007]
[1645192430500,0.86352366,2904.2,2903.9,0.01348007]
[1645192430699,0.00219366,2904.2,2903.9,0.01348007]
[1645192431101,0.00219366,2904.2,2903.9,0.06605684]
[1645192431298,0.00219368,2904.1,2903.9,0.06605684]
[1645192432249,0.00219368,2904.1,2903.3,2.96955]
[1645192432457,0.00219368,2904.1,2903.1,1.62289445]
[1645192432656,0.86165,2903.7,2903.1,1.62289445]
[1645192432852,0.8617067,2903.6,2903.1,1.6207]
[1645192433051,2.5850767,2903.6,2903.1,1.6207]
[1645192433451,1.09092511,2903.4,2903.1,1.6207]
[1645192433852,1.95262881,2903.4,2903.3,0.00231616]
[1645192434474,1.09092511,2903.4,2903.3,0.00231616]
[1645192435056,0.86166,2903.5,2903.1,0.00231618]
[1645192435254,0.86167,2903.5,2903.1,0.00231618]
[1645192436298,0.86167,2903.5,2903.3,0.03149763]
[1645192436497,1.01815601,2903.4,2903.3,0.03149763]
[1645192437302,1.01815601,2903.4,2903.3,0.03380515]
[1645192438603,1.01815601,2903.4,2903.3,0.03149763]
[1645192440257,4.51815601,2903.4,2903.3,0.03149763]
[1645192440863,5.01515601,2903.4,2903.3,0.03149763]
[1645192441059,5.01515601,2903.4,2903.2,0.00205514]
[1645192441060,6.33591216,2903.4,2903.2,0.00205514]
[1645192441262,4.6721,2903.3,2903.2,0.00205514]
[1645192441460,5.1691,2903.3,2903.2,0.00205514]
[1645192441658,6.47042083,2903.3,2903.2,0.00205514]
[1645192441857,6.47042083,2903.3,2902.1,1.5567]
[1645192442058,0.8619,2902.6,2902.1,1.5567]
[1645192442265,1.7238447,2902.6,2902.1,1.5567]
[1645192443395,1.7238447,2902.6,2902.2,0.00240895]
[1645192443595,0.86195,2902.5,2902.2,0.00240895]
[1645192444399,0.497,2902.9,2902.2,0.00240895]
[1645192444598,0.497,2902.9,2902.2,0.0048179]
[1645192444999,0.497,2902.9,2902.2,0.00240895]
[1645192445399,1.35875,2902.9,2902.2,0.00240895]
[1645192445598,1.07894679,2902.6,2901.8,0.95489557]
[1645192445797,1.07894679,2902.6,2901.7,1.72353]
[1645192446100,0.02013651,2902.5,2902.4,0.00240884]
[1645192447148,0.02013651,2902.5,2902.4,0.00463017]
[1645192447455,0.02013651,2902.5,2902.4,0.00222133]
[1645192448050,0.02013651,2902.5,2901.9,1.89274252]
[1645192448251,0.02013651,2902.5,2901.9,1.03095252]
[1645192448450,0.02013651,2902.5,2902.3,0.00219426]
[1645192449656,0.02013651,2902.5,2902.1,0.00220067]
[1645192450905,0.02013651,2902.5,2902.3,0.00220032]
[1645192451102,1.07894679,2902.6,2902.4,0.03043656]
[1645192451704,0.86188,2902.5,2902.4,0.03043656]
[1645192453306,1.07894679,2902.6,2902.4,0.03043656]
[1645192455556,1.07894679,2902.6,2902.4,0.03275289]
[1645192455959,1.07894679,2902.6,2902.4,0.03183662]
[1645192456354,1.07894679,2902.6,2902.4,0.04030345]
[1645192457963,1.07894679,2902.6,2902.4,0.04254106]
[1645192458200,1.07894679,2902.6,2902.4,0.04022473]
[1645192458902,1.07894679,2902.6,2902.4,0.03798712]